fUSD/lending_fUSD_20240829
["ID","MTS","AMOUNT","RATE_DAILY","PERIOD"]
[336552144,1724952640717,-162.6,0.00015746,2]
[336552146,1724952640727,-350.0,0.00016,2]
[336552148,1724952640736,-250.0,0.00016149,2]
[336552150,1724952640746,-15943.58,0.00016283,2]
[336552152,1724952640755,-2751.0,0.00016587,2]
[336552153,1724952640765,-200.0,0.0001662,2]
[336552155,1724952640774,-250.0,0.00016872,2]
[336552157,1724952640784,-200.0,0.00017041,2]
[336552159,1724952640793,-1000.0,0.00017114,2]
[336552161,1724952640802,-3500.0,0.0001763,2]
[336552163,1724952640814,-2900.0,0.0001763,2]
[336552165,1724952640825,-1925.45,0.0001777,2]
[336552167,1724952640834,-200.0,0.00017786,2]
[336552169,1724952640844,-162.6,0.0001801,2]
[336552171,1724952640854,-320.0,0.00018475,5]
[336552172,1724952640863,-705.91,0.000185,7]
[336552174,1724952640873,-167.0,0.00018508,2]
[336552176,1724952640883,-1502.55109,0.0001852,2]
[336552178,1724952640896,-6626.7032,0.00018595,2]
[336552180,1724952640906,-2000.0,0.00018604,2]
[336552182,1724952640916,-2239.831,0.00018605,2]
[336552184,1724952640925,-589.589,0.00018605,2]
[336552185,1724952640935,-223.5226,0.00018605,2]
[336552187,1724952640944,-590.49639921,0.00018612,2]
[336552189,1724952640954,-2238.97715045,0.00018615,2]
[336552191,1724952640963,-351.57017115,0.00018615,2]
[336552193,1724952640973,-300.0,0.0001863,5]
[336552195,1724952640984,-163.94885823,0.00018646,2]
[336552197,1724952640994,-280.3676559,0.00018646,2]
[336552199,1724952641003,-170.19584396,0.00018646,2]
[336552201,1724952641012,-179.90161929,0.0001865,2]
[336552203,1724952641022,-2000.0,0.00018653,2]
[336552205,1724952641031,-500.0,0.00018702,2]
[336552206,1724952641041,-2000.0,0.00018702,2]
[336552208,1724952641050,-500.0,0.00018702,2]
[336552210,1724952641060,-200.0,0.00018702,2]
[336552212,1724952641070,-150.81,0.00018705,2]
[336552214,1724952641080,-150.81,0.00018705,2]
[336552216,1724952641091,-1031.54405097,0.00018714,5]
[336552218,1724952641100,-845.46471867,0.00018715,2]
[336552220,1724952641110,-188111.1824146,0.00018715,2]
[336552222,1724952641119,-632.0,0.00018715,2]
[336552224,1724952641128,-1620564.06841438,0.00018715,2]
[336552226,1724952641138,-151.0,0.00018715,2]
[336552227,1724952641147,-935.118523,0.00018715,2]
[336552229,1724952641156,-151.0,0.00018715,2]
[336552231,1724952641166,-151.0,0.00018715,2]
[336552233,1724952641175,-199.195318,0.00018715,2]
[336552235,1724952641184,-935.118523,0.00018715,2]
[336552237,1724952641194,-151.0,0.00018715,2]
[336552239,1724952641202,-192.947517,0.00018715,2]
[336552241,1724952641212,-192.947517,0.00018715,2]
[336552243,1724952641222,-151.0,0.00018715,2]
[336552245,1724952641231,-151.0,0.00018715,2]
[336552246,1724952641240,-150.0,0.00018746,2]
[336552248,1724952641250,-2000.0,0.0001875,2]
[336552250,1724952641260,-500.0,0.00018773,2]
[336552253,1724952641271,-2000.0,0.00018799,2]
[336552255,1724952641282,-1071.39214293,0.00018816,2]
[336552257,1724952641293,-2000.0,0.00018847,2]
[336552259,1724952641303,-200.0,0.00018847,2]
[336552261,1724952641313,-261.4825,0.000189,2]
[336552263,1724952641323,-167.0,0.00018946,2]
[336552265,1724952641332,-160.0,0.00018955,2]
[336552267,1724952641342,-700.0,0.0001897,2]
[336552269,1724952641351,-500.0,0.00018973,2]
[336552270,1724952641360,-151.0,0.0001899,2]
[336552272,1724952641370,-151.0,0.0001899,2]
[336552274,1724952641380,-151.0,0.0001899,2]
[336552276,1724952641390,-151.0,0.0001899,2]
[336552278,1724952641399,-155.590723,0.0001899,2]
[336552280,1724952641409,-155.590723,0.0001899,2]
[336552282,1724952641419,-151.0,0.0001899,2]
[336552284,1724952641429,-151.0,0.0001899,2]
[336552286,1724952641438,-165.392571,0.0001899,2]
[336552288,1724952641448,-151.0,0.0001899,2]
[336552290,1724952641457,-165.392571,0.0001899,2]
[336552292,1724952641466,-274.175516,0.0001899,2]
[336552293,1724952641475,-274.175516,0.0001899,2]
[336552295,1724952641484,-1067.007109,0.0001899,2]
[336552297,1724952641494,-1067.007109,0.0001899,2]
[336552299,1724952641503,-151.0,0.0001899,2]
[336552301,1724952641512,-313.307385,0.0001899,2]
[336552303,1724952641521,-313.307385,0.0001899,2]
[336552305,1724952641530,-150.01,0.00018999,2]
[336552307,1724952641539,-2128.56637284,0.00018999,2]
[336552309,1724952641550,-2500.0,0.00019,5]
[336552311,1724952641560,-698981.01516361,0.00019,10]
[336552313,1724952641569,-154.318887,0.00019,10]
[336552315,1724952641579,-496.0,0.00019,2]
[336552317,1724952641589,-151.0,0.00019,2]
[336552319,1724952641600,-537.901984,0.00019,2]
[336552321,1724952641610,-537.901984,0.00019,2]
[336552323,1724952641620,-151.700482,0.00019,2]
[336552325,1724952641630,-151.0,0.00019,2]
[336552327,1724952641639,-151.700482,0.00019,2]
[336552328,1724952641649,-151.0,0.00019,2]
[336552330,1724952641660,-158.064572,0.00019,2]
[336552332,1724952641670,-151.0,0.00019,2]
[336552334,1724952641679,-164.843104,0.00019,2]
[336552336,1724952641688,-164.843104,0.00019,2]
[336552338,1724952641697,-155.590723,0.00019,2]
[336552340,1724952641707,-155.590723,0.00019,2]
[336552342,1724952641716,-151.0,0.00019,2]
[336552343,1724952641725,-151.0,0.00019,2]
[336552345,1724952641735,-165.392571,0.00019,2]
[336552347,1724952641747,-151.0,0.00019,2]
[336552349,1724952641757,-165.392571,0.00019,2]
[336552351,1724952641766,-274.175516,0.00019,2]
[336552353,1724952641776,-274.175516,0.00019,2]
[336552355,1724952641787,-1067.007109,0.00019,2]
[336552358,1724952641798,-1067.007109,0.00019,2]
[336552360,1724952641810,-151.0,0.00019,2]
[336552393,1724952642132,-313.307385,0.00019,2]
[336552395,1724952642142,-313.307385,0.00019,2]
[336552397,1724952642151,-151.0,0.00019,2]
[336552399,1724952642161,-935.118523,0.00019,2]
[336552401,1724952642170,-151.0,0.00019,2]
[336552403,1724952642179,-935.118523,0.00019,2]
[336552405,1724952642188,-151.0,0.00019,2]
[336552407,1724952642197,-1000.0,0.00019,2]
[336552409,1724952642206,-192.947517,0.00019,2]
[336552411,1724952642216,-192.947517,0.00019,2]
[336552413,1724952642225,-151.0,0.00019,2]
[336552415,1724952642235,-151.0,0.00019,2]
[336552417,1724952642243,-639.71168864,0.00019,2]
[336552419,1724952642253,-225.29822111,0.00019,2]
[336552421,1724952642262,-150.0,0.00019,2]
[336552423,1724952642272,-150.0,0.00019,2]
[336552425,1724952642281,-285.5930703,0.00019,2]
[336552426,1724952642291,-273.1820154,0.00019,2]
[336552427,1724952642300,-150.0,0.00019,2]
[336552428,1724952642309,-150.0,0.00019,2]
[336552429,1724952642318,-150.0,0.00019,2]
[336552430,1724952642327,-150.0,0.00019,2]
[336552431,1724952642337,-150.0,0.00019,2]
[336552432,1724952642347,-162.65863461,0.00019,2]
[336552433,1724952642357,-150.0,0.00019,2]
[336552434,1724952642366,-150.0,0.00019,2]
[336552435,1724952642375,-1459.9276282,0.00019137,2]
[336552436,1724952642385,-489.39969071,0.0001915,2]
[336552437,1724952642394,-12111.8173671,0.0001915,2]
[336552439,1724952642403,-8655.2507201,0.00019163,2]
[336552441,1724952642412,-2078.0764564,0.00019163,2]
[336552443,1724952642422,-230.5326563,0.00019163,2]
[336552445,1724952642432,-639.71168864,0.00019212,2]
[336552447,1724952642442,-225.29822111,0.00019212,2]
[336552449,1724952642452,-285.5930703,0.00019212,2]
[336552451,1724952642461,-1000.0,0.00019253,2]
[336552453,1724952642471,-4249.207682,0.0001929,2]
[336552455,1724952642480,-4249.207682,0.0001929,2]
[336552457,1724952642490,-812.40388,0.0001929,2]
[336552459,1724952642500,-812.40388,0.0001929,2]
[336552461,1724952642511,-151.0,0.0001929,2]
[336552463,1724952642520,-299.42556,0.0001929,2]
[336552465,1724952642531,-537.901984,0.0001929,2]
[336552467,1724952642540,-299.42556,0.0001929,2]
[336552469,1724952642551,-537.901984,0.0001929,2]
[336552471,1724952642560,-151.700482,0.0001929,2]
[336552473,1724952642569,-151.700482,0.0001929,2]
[336552475,1724952642579,-164.843104,0.0001929,2]
[336552477,1724952642588,-164.843104,0.0001929,2]
[336552479,1724952642599,-101999.56,0.000193,2]
[336552481,1724952642608,-151.0,0.000193,2]
[336552483,1724952642617,-151.0,0.000193,2]
[336552485,1724952642626,-151.0,0.000193,2]
[336552487,1724952642636,-243.849146,0.000193,2]
[336552489,1724952642645,-243.849146,0.000193,2]
[336552491,1724952642654,-151.0,0.000193,2]
[336552492,1724952642663,-151.0,0.000193,2]
[336552494,1724952642672,-151.0,0.000193,2]
[336552496,1724952642682,-151.0,0.000193,2]
[336552498,1724952642691,-151.0,0.000193,2]
[336552500,1724952642700,-151.0,0.000193,2]
[336552502,1724952642709,-151.0,0.000193,2]
[336552504,1724952642718,-269.88868,0.000193,2]
[336552506,1724952642727,-151.0,0.000193,2]
[336552508,1724952642736,-151.0,0.000193,2]
[336552510,1724952642745,-151.330071,0.000193,2]
[336552512,1724952642754,-559.784586,0.000193,2]
[336552514,1724952642763,-151.0,0.000193,2]
[336552518,1724952642772,-151.0,0.000193,2]
[336552521,1724952642781,-151.0,0.000193,2]
[336552525,1724952642791,-1238.412468,0.000193,2]
[336552528,1724952642800,-151.0,0.000193,2]
[336552530,1724952642809,-1238.412468,0.000193,2]
[336552532,1724952642823,-1094.872796,0.000193,2]
[336552534,1724952642832,-1094.872796,0.000193,2]
[336552538,1724952642842,-151.0,0.000193,2]
[336552541,1724952642851,-246.396621,0.000193,2]
[336552544,1724952642861,-246.396621,0.000193,2]
[336552546,1724952642870,-204.172122,0.000193,2]
[336552548,1724952642879,-689.101902,0.000193,2]
[336552550,1724952642888,-204.172122,0.000193,2]
[336552552,1724952642901,-689.101902,0.000193,2]
[336552554,1724952642910,-1013.420179,0.000193,2]
[336552556,1724952642919,-1013.420179,0.000193,2]
[336552558,1724952642928,-151.0,0.000193,2]
[336552560,1724952642937,-151.0,0.000193,2]
[336552563,1724952642946,-151.0,0.000193,2]
[336552565,1724952642955,-155.590723,0.000193,2]
[336552567,1724952642965,-155.590723,0.000193,2]
[336552569,1724952642974,-151.0,0.000193,2]
[336552571,1724952642983,-151.0,0.000193,2]
[336552573,1724952642993,-165.392571,0.000193,2]
[336552575,1724952643002,-164.935343,0.000193,2]
[336552577,1724952643011,-165.392571,0.000193,2]
[336552579,1724952643020,-274.175516,0.000193,2]
[336552580,1724952643029,-274.175516,0.000193,2]
[336552582,1724952643038,-1067.007109,0.000193,2]
[336552584,1724952643048,-1067.007109,0.000193,2]
[336552586,1724952643057,-151.0,0.000193,2]
[336552588,1724952643066,-313.307385,0.000193,2]
[336552590,1724952643076,-313.307385,0.000193,2]
[336552592,1724952643085,-4249.207682,0.00019391,2]
[336552594,1724952643095,-4249.207682,0.00019391,2]
[336552596,1724952643104,-812.40388,0.00019391,2]
[336552597,1724952643113,-812.40388,0.00019391,2]
[336552599,1724952643122,-154.228067,0.00019391,2]
[336552601,1724952643131,-299.42556,0.00019391,2]
[336552603,1724952643141,-537.901984,0.00019391,2]
[336552605,1724952643150,-299.42556,0.00019391,2]
[336552607,1724952643160,-537.901984,0.00019391,2]
[336552608,1724952643169,-151.700482,0.00019391,2]
[336552610,1724952643178,-151.700482,0.00019391,2]
[336552612,1724952643187,-164.843104,0.00019391,2]
[336552614,1724952643197,-164.843104,0.00019391,2]
[336552616,1724952643205,-150.81,0.00019391,2]
[336552618,1724952643214,-151.0,0.00019401,2]
[336552620,1724952643223,-151.0,0.00019401,2]
[336552622,1724952643232,-151.0,0.00019401,2]
[336552624,1724952643241,-151.0,0.00019401,2]
[336552626,1724952643250,-151.0,0.00019401,2]
[336552628,1724952643259,-241.312601,0.00019401,2]
[336552630,1724952643268,-241.312601,0.00019401,2]
[336552631,1724952643277,-2707.160316,0.00019401,2]
[336552633,1724952643287,-2707.160316,0.00019401,2]
[336552635,1724952643296,-340.834628,0.00019401,2]
[336552637,1724952643305,-151.0,0.00019401,2]
[336552639,1724952643314,-340.834628,0.00019401,2]
[336552641,1724952643323,-151.0,0.00019401,2]
[336552643,1724952643332,-151.0,0.00019401,2]
[336552645,1724952643342,-186.400105,0.00019401,2]
[336552647,1724952643352,-186.400105,0.00019401,2]
[336552649,1724952643362,-507.718634,0.00019401,2]
[336552651,1724952643372,-507.718634,0.00019401,2]
[336552654,1724952643382,-197.494048,0.00019401,2]
[336552656,1724952643393,-197.494048,0.00019401,2]
[336552658,1724952643402,-301.193752,0.00019401,2]
[336552660,1724952643412,-301.193752,0.00019401,2]
[336552662,1724952643422,-151.0,0.00019401,2]
[336552664,1724952643432,-151.0,0.00019401,2]
[336552666,1724952643442,-152.3795,0.00019401,2]
[336552668,1724952643453,-1037.505884,0.00019401,2]
[336552670,1724952643463,-258.125603,0.00019401,2]
[336552672,1724952643472,-335.969473,0.00019401,2]
[336552674,1724952643482,-1037.505884,0.00019401,2]
[336552675,1724952643491,-258.125603,0.00019401,2]
[336552677,1724952643501,-335.969473,0.00019401,2]
[336552679,1724952643511,-151.0,0.00019401,2]
[336552681,1724952643521,-151.0,0.00019401,2]
[336552683,1724952643532,-151.0,0.00019401,2]
[336552685,1724952643543,-242.889532,0.00019401,2]
[336552687,1724952643552,-201.511157,0.00019401,2]
[336552688,1724952643562,-969.699533,0.00019401,2]
[336552690,1724952643571,-151.0,0.00019401,2]
[336552692,1724952643582,-201.511157,0.00019401,2]
[336552694,1724952643594,-969.699533,0.00019401,2]
[336552696,1724952643603,-900.518021,0.00019401,2]
[336552698,1724952643612,-900.518021,0.00019401,2]
[336552700,1724952643621,-151.0,0.00019401,2]
[336552702,1724952643631,-1238.412468,0.00019401,2]
[336552704,1724952643642,-1238.412468,0.00019401,2]
[336552706,1724952643652,-1094.872796,0.00019401,2]
[336552708,1724952643662,-10000.0,0.00019401,2]
[336552710,1724952643671,-1094.872796,0.00019401,2]
[336552712,1724952643681,-10000.0,0.00019401,2]
[336552714,1724952643690,-10000.0,0.00019401,2]
[336552716,1724952643699,-729.886391,0.00019401,2]
[336552718,1724952643708,-729.886391,0.00019401,2]
[336552720,1724952643718,-151.0,0.00019401,2]
[336552722,1724952643727,-1128.554463,0.00019401,2]
[336552724,1724952643736,-1128.554463,0.00019401,2]
[336552726,1724952643745,-246.396621,0.00019401,2]
[336552727,1724952643754,-246.396621,0.00019401,2]
[336552729,1724952643763,-204.172122,0.00019401,2]
[336552731,1724952643772,-689.101902,0.00019401,2]
[336552733,1724952643781,-204.172122,0.00019401,2]
[336552735,1724952643791,-151.0,0.00019401,2]
[336552736,1724952643800,-151.0,0.00019401,2]
[336552738,1724952643809,-151.0,0.00019401,2]
[336552740,1724952643823,-689.101902,0.00019401,2]
[336552742,1724952643831,-151.0,0.00019401,2]
[336552744,1724952643840,-1013.420179,0.00019401,2]
[336552746,1724952643851,-1013.420179,0.00019401,2]
[336552747,1724952643860,-276.598241,0.00019401,2]
[336552749,1724952643869,-276.598241,0.00019401,2]
[336552751,1724952643878,-151.0,0.00019401,2]
[336552753,1724952643887,-151.0,0.00019401,2]
[336552755,1724952643898,-151.0,0.00019401,2]
[336552757,1724952643907,-155.590723,0.00019401,2]
[336552758,1724952643916,-155.590723,0.00019401,2]
[336552760,1724952643925,-151.0,0.00019401,2]
[336552762,1724952643935,-151.0,0.00019401,2]
[336552764,1724952643944,-165.392571,0.00019401,2]
[336552766,1724952643954,-165.392571,0.00019401,2]
[336552767,1724952643963,-274.175516,0.00019401,2]
[336552769,1724952643972,-274.175516,0.00019401,2]
[336552771,1724952643982,-1067.007109,0.00019401,2]
[336552773,1724952643991,-1067.007109,0.00019401,2]
[336552775,1724952644001,-155.270987,0.00019401,2]
[336552777,1724952644010,-313.307385,0.00019401,2]
[336552779,1724952644020,-313.307385,0.00019401,2]
[336552781,1724952644029,-151.0,0.00019401,2]
[336552783,1724952644038,-935.118523,0.00019401,2]
[336552785,1724952644048,-151.0,0.00019401,2]
[336552787,1724952644058,-151.889712,0.00019401,2]
[336552789,1724952644067,-935.118523,0.00019401,2]
[336552791,1724952644077,-192.947517,0.00019401,2]
[336552793,1724952644087,-192.947517,0.00019401,2]
[336552795,1724952644097,-151.0,0.00019401,2]
[336552797,1724952644107,-151.0,0.00019401,2]
[336552799,1724952644117,-240.0,0.00019411,2]
[336552801,1724952644128,-150.0,0.00019412,2]
[336552803,1724952644138,-639.71168864,0.00019424,2]
[336552805,1724952644148,-225.29822111,0.00019424,2]
[336552807,1724952644158,-285.5930703,0.00019424,2]
[336552809,1724952644168,-1000.0,0.000195,2]
[336552811,1724952644178,-590.49639921,0.000195,2]
[336552813,1724952644188,-167.0,0.00019532,2]
[336552815,1724952644197,-639.71168864,0.00019636,2]
[336552817,1724952644206,-225.29822111,0.00019636,2]
[336552819,1724952644216,-285.5930703,0.00019636,2]
[336552821,1724952644225,-3500.0,0.00019822,2]
[336552823,1724952644234,-2900.0,0.00019822,2]
[336552825,1724952644243,-150.0,0.00019824,2]
[336552827,1724952644253,-153.1,0.00019842,2]
[336552829,1724952644262,-639.71168864,0.00019848,2]
[336552831,1724952644271,-225.29822111,0.00019848,2]
[336552832,1724952644280,-285.5930703,0.00019848,2]
[336552835,1724952644290,-263.3,0.00019879,2]
[336552837,1724952644300,-150.34,0.00019881,2]
[336552838,1724952644309,-150.0,0.00019881,2]
[336552840,1724952644319,-150.0,0.00019881,2]
[336552842,1724952644327,-150.0,0.00019881,2]
[336552844,1724952644336,-13136.6408769,0.00019962,2]
[336552846,1724952644347,-400.0,0.0001997,2]
[336552848,1724952644356,-9387.6019562,0.00019972,2]
[336552850,1724952644365,-2253.9098217,0.00019972,2]
[336552852,1724952644375,-250.038836,0.00019972,2]
[336552854,1724952644384,-500.0,0.00019973,2]
[336552856,1724952644393,-150.0,0.00019973,2]
[336552858,1724952644403,-537.901984,0.00019976,2]
[336552860,1724952644413,-537.901984,0.00019976,2]
[336552862,1724952644423,-151.700482,0.00019976,2]
[336552864,1724952644432,-151.700482,0.00019976,2]
[336552866,1724952644441,-164.843104,0.00019976,2]
[336552868,1724952644452,-164.843104,0.00019976,2]
[336552870,1724952644462,-151.0,0.00019986,2]
[336552872,1724952644472,-151.0,0.00019986,2]
[336552874,1724952644483,-174.026529,0.00019986,2]
[336552876,1724952644494,-174.026529,0.00019986,2]
[336552878,1724952644505,-151.0,0.00019986,2]
[336552880,1724952644515,-151.0,0.00019986,2]
[336552882,1724952644525,-151.0,0.00019986,2]
[336552884,1724952644535,-151.0,0.00019986,2]
[336552886,1724952644544,-151.0,0.00019986,2]
[336552888,1724952644553,-151.0,0.00019986,2]
[336552890,1724952644563,-177.836594,0.00019986,2]
[336552892,1724952644573,-177.836594,0.00019986,2]
[336552894,1724952644584,-4249.207682,0.00019986,2]
[336552896,1724952644594,-4249.207682,0.00019986,2]
[336552898,1724952644603,-812.40388,0.00019986,2]
[336552900,1724952644612,-812.40388,0.00019986,2]
[336552902,1724952644622,-299.42556,0.00019986,2]
[336552904,1724952644631,-10119.9531923,0.00019986,2]
[336552906,1724952644640,-299.42556,0.00019986,2]
[336552908,1724952644650,-2429.743187,0.00019986,2]
[336552910,1724952644659,-269.5450157,0.00019986,2]
[336552912,1724952644668,-14161.4643866,0.00019986,2]
[336552914,1724952644677,-1288.8320373,0.00019986,2]
[336552916,1724952644687,-151.0,0.0001999,2]
[336552918,1724952644696,-151.0,0.0001999,2]
[336552920,1724952644705,-7599.45663981,0.0002,5]
[336552922,1724952644715,-1786.33393663,0.0002,2]
[336552924,1724952644724,-1775.5196322,0.0002,2]
[336552926,1724952644734,-1000.0,0.0002,10]
[336552928,1724952644743,-200.64153,0.0002,14]
[336552930,1724952644752,-468260.1872502,0.0002,2]
[336552931,1724952644761,-993.0,0.0002,2]
[336552933,1724952644770,-993.0,0.0002,2]
[336552935,1724952644779,-239.07,0.0002,11]
[336552937,1724952644788,-300.0,0.0002,11]
[336552939,1724952644797,-11058.9458158,0.0002,3]
[336552941,1724952644806,-869.77,0.0002,4]
[336552943,1724952644817,-496.0,0.0002,2]
[336552944,1724952644827,-151.0,0.0002,2]
[336552946,1724952644836,-151.0,0.0002,2]
[336552948,1724952644845,-151.0,0.0002,2]
[336552950,1724952644855,-151.0,0.0002,2]
[336552952,1724952644865,-174.026529,0.0002,2]
[336552954,1724952644873,-174.026529,0.0002,2]
[336552956,1724952644882,-151.0,0.0002,2]
[336552957,1724952644892,-151.0,0.0002,2]
[336552959,1724952644900,-151.0,0.0002,2]
[336552961,1724952644910,-151.0,0.0002,2]
[336552963,1724952644919,-151.0,0.0002,2]
[336552965,1724952644929,-151.0,0.0002,2]
[336552967,1724952644938,-177.836594,0.0002,2]
[336552969,1724952644947,-177.836594,0.0002,2]
[336552971,1724952644956,-151.0,0.0002,2]
[336552973,1724952644965,-253.440142,0.0002,2]
[336552975,1724952644975,-243.849146,0.0002,2]
[336552977,1724952644983,-243.849146,0.0002,2]
[336552979,1724952644992,-151.0,0.0002,2]
[336552981,1724952645001,-151.0,0.0002,2]
[336552982,1724952645010,-151.0,0.0002,2]
[336552984,1724952645020,-151.0,0.0002,2]
[336552986,1724952645029,-151.0,0.0002,2]
[336552989,1724952645039,-151.0,0.0002,2]
[336552991,1724952645049,-151.0,0.0002,2]
[336552993,1724952645059,-155.654317,0.0002,2]
[336552995,1724952645068,-559.784586,0.0002,2]
[336552997,1724952645078,-559.784586,0.0002,2]
[336552998,1724952645087,-151.0,0.0002,2]
[336553000,1724952645098,-151.0,0.0002,2]
[336553002,1724952645107,-151.0,0.0002,2]
[336553004,1724952645117,-182.774081,0.0002,2]
[336553006,1724952645127,-152.19846,0.0002,2]
[336553008,1724952645136,-173.879686,0.0002,2]
[336553010,1724952645145,-241.312601,0.0002,2]
[336553012,1724952645154,-241.312601,0.0002,2]
[336553014,1724952645164,-2707.160316,0.0002,2]
[336553016,1724952645173,-2707.160316,0.0002,2]
[336553018,1724952645183,-340.834628,0.0002,2]
[336553020,1724952645193,-151.0,0.0002,2]
[336553022,1724952645202,-340.834628,0.0002,2]
[336553024,1724952645212,-151.0,0.0002,2]
[336553026,1724952645221,-151.0,0.0002,2]
[336553028,1724952645231,-186.400105,0.0002,2]
[336553030,1724952645240,-186.400105,0.0002,2]
[336553032,1724952645249,-507.718634,0.0002,2]
[336553033,1724952645259,-507.718634,0.0002,2]
[336553035,1724952645269,-197.494048,0.0002,2]
[336553037,1724952645280,-197.494048,0.0002,2]
[336553039,1724952645289,-301.193752,0.0002,2]
[336553041,1724952645299,-301.193752,0.0002,2]
[336553043,1724952645309,-151.0,0.0002,2]
[336553045,1724952645319,-172.765264,0.0002,2]
[336553047,1724952645329,-1037.505884,0.0002,2]
[336553049,1724952645338,-258.125603,0.0002,2]
[336553051,1724952645349,-1037.505884,0.0002,2]
[336553053,1724952645358,-335.969473,0.0002,2]
[336553054,1724952645367,-258.125603,0.0002,2]
[336553056,1724952645376,-335.969473,0.0002,2]
[336553058,1724952645386,-151.0,0.0002,2]
[336553060,1724952645395,-151.0,0.0002,2]
[336553062,1724952645405,-151.0,0.0002,2]
[336553063,1724952645414,-201.511157,0.0002,2]
[336553064,1724952645424,-969.699533,0.0002,2]
[336553065,1724952645434,-151.0,0.0002,2]
[336553066,1724952645443,-201.511157,0.0002,2]
[336553067,1724952645452,-969.699533,0.0002,2]
[336553068,1724952645462,-153.109081,0.0002,2]
[336553069,1724952645471,-900.518021,0.0002,2]
[336553070,1724952645481,-900.518021,0.0002,2]
[336553071,1724952645490,-495.510894,0.0002,5]
[336553072,1724952645499,-151.0,0.0002,2]
[336553073,1724952645509,-1238.412468,0.0002,2]
[336553074,1724952645518,-1238.412468,0.0002,2]
[336553076,1724952645527,-1094.872796,0.0002,2]
[336553078,1724952645536,-10000.0,0.0002,2]
[336553079,1724952645546,-1094.872796,0.0002,2]
[336553081,1724952645556,-10000.0,0.0002,2]
[336553083,1724952645566,-10000.0,0.0002,2]
[336553085,1724952645576,-729.886391,0.0002,2]
[336553087,1724952645585,-729.886391,0.0002,2]
[336553089,1724952645595,-151.0,0.0002,2]
[336553091,1724952645604,-1128.554463,0.0002,2]
[336553094,1724952645614,-1128.554463,0.0002,2]
[336553096,1724952645625,-246.396621,0.0002,2]
[336553098,1724952645635,-150.132222,0.0002,2]
[336553100,1724952645644,-246.396621,0.0002,2]
[336553102,1724952645653,-204.172122,0.0002,2]
[336553104,1724952645664,-4249.207682,0.0002,2]
[336553107,1724952645674,-204.172122,0.0002,2]
[336553110,1724952645683,-151.0,0.0002,2]
[336553113,1724952645693,-4249.207682,0.0002,2]
[336553116,1724952645704,-151.0,0.0002,2]
[336553119,1724952645714,-689.101902,0.0002,2]
[336553122,1724952645724,-200.100057,0.0002,2]
[336553125,1724952645733,-689.101902,0.0002,2]
[336553127,1724952645743,-812.40388,0.0002,2]
[336553130,1724952645752,-151.0,0.0002,2]
[336553132,1724952645762,-812.40388,0.0002,2]
[336553134,1724952645772,-1013.420179,0.0002,2]
[336553136,1724952645782,-1013.420179,0.0002,2]
[336553138,1724952645791,-299.42556,0.0002,2]
[336553140,1724952645801,-299.42556,0.0002,2]
[336553142,1724952645810,-537.901984,0.0002,2]